bitfinex-derivatives/quotes_SOLF0:USTF0_20240913
["timestamp","ask_amount","ask_price","bid_price","bid_amount"]
[1726194068912,14.7492,134.76,134.73,4.7318]
[1726194069613,11.41,134.74,134.68,1.3621]
[1726194069922,11.41,134.75,134.7,11.41]
[1726194070714,1.3709,134.82,134.72,11.41]
[1726194070911,1.3709,134.82,134.74,11.41]
[1726194071115,11.41,134.79,134.74,11.41]
[1726194071318,14.7485,134.79,134.75,3.3393]
[1726194074528,11.41,134.78,134.73,2.6202]
[1726194075328,14.7486,134.78,134.75,3.3393]
[1726194083535,3.3384,134.79,134.73,14.0302]
[1726194083735,14.7484,134.79,134.73,14.0302]
[1726194084327,3.3386,134.78,134.75,3.3391]
[1726194084835,14.7486,134.78,134.75,3.3391]
[1726194085341,14.7486,134.78,134.73,14.0302]
[1726194085342,3.339,134.77,134.73,3.3396]
[1726194085543,11.41,134.77,134.72,11.41]
[1726194086037,3.3392,134.76,134.72,14.7498]
[1726194086341,11.41,134.78,134.73,11.41]
[1726194086530,3.3387,134.78,134.74,3.3393]
[1726194086729,11.41,134.79,134.74,11.41]
[1726194087639,14.7485,134.79,134.74,11.41]
[1726194088141,3.3386,134.78,134.75,3.3392]
[1726194089232,14.7486,134.78,134.75,3.3392]
[1726194090631,14.7486,134.78,134.73,14.1023]
[1726194090632,3.3389,134.77,134.73,14.1023]
[1726194090824,14.7489,134.77,134.71,11.41]
[1726194091342,14.7489,134.77,134.73,3.3396]
[1726194091343,3.3391,134.76,134.73,3.3396]
[1726194092328,3.3391,134.76,134.71,11.41]
[1726194093741,3.3391,134.76,134.72,3.3398]
[1726194093946,3.3393,134.75,134.72,3.3398]
[1726194094836,3.3393,134.75,134.73,3.3398]
[1726194095030,11.41,134.77,134.73,3.3398]
[1726194095235,3.3392,134.76,134.73,14.7498]
[1726194095438,3.3392,134.76,134.74,3.3395]
[1726194095643,1.3709,134.82,134.74,3.3395]
[1726194095644,11.41,134.78,134.74,3.3395]
[1726194096534,3.3389,134.77,134.74,3.3395]
[1726194098252,3.3386,134.78,134.75,3.3393]
[1726194098444,11.41,134.79,134.75,3.3393]
[1726194098843,14.7485,134.79,134.75,3.3393]
[1726194099045,3.3385,134.79,134.74,11.41]
[1726194099752,1.3709,134.82,134.75,11.41]
[1726194099947,11.41,134.8,134.75,11.41]
[1726194100950,3.3383,134.79,134.76,3.3389]
[1726194102749,14.7481,134.8,134.75,11.41]
[1726194102943,3.3381,134.8,134.76,11.41]
[1726194103348,3.3379,134.81,134.77,3.3386]
[1726194104852,3.3381,134.8,134.77,3.3386]
[1726194106144,14.7481,134.8,134.77,3.3386]
[1726194106340,14.7484,134.79,134.74,11.41]
[1726194107154,14.7484,134.79,134.76,3.3389]
[1726194107854,11.41,134.79,134.76,3.3389]
[1726194108954,14.7481,134.8,134.76,3.3389]
[1726194109155,14.7481,134.8,134.77,3.3388]
[1726194109850,14.7481,134.8,134.76,14.7489]
[1726194110159,3.3381,134.8,134.76,11.41]
[1726194111655,3.3381,134.8,134.77,3.3386]
[1726194114255,3.3381,134.8,134.76,14.7489]
[1726194114459,3.3384,134.79,134.76,3.3389]
[1726194115764,11.41,134.82,134.73,4.0089]
[1726194115958,11.41,134.82,134.77,11.41]
[1726194116350,14.7476,134.82,134.78,3.3383]
[1726194119865,3.3379,134.81,134.77,14.7486]
[1726194120264,3.3379,134.81,134.77,11.41]
[1726194120673,3.3379,134.81,134.78,3.3384]
[1726194120871,14.7477,134.82,134.78,3.3384]
[1726194122570,11.41,134.82,134.73,4.0089]
[1726194122873,3.338,134.81,134.77,11.41]
[1726194123086,11.41,134.82,134.77,11.41]
[1726194123371,156.4190639,134.85,134.8,11.41]
[1726194123670,16.22536083,134.84,134.8,11.41]
[1726194123970,18.40991425,134.84,134.8,14.7479]
[1726194125869,3.3374,134.83,134.8,14.7479]
[1726194126169,14.7474,134.83,134.79,3.3382]
[1726194127568,3.3378,134.81,134.78,3.3385]
[1726194128265,3.3378,134.81,134.77,14.7488]
[1726194128475,3.3381,134.8,134.77,14.7488]
[1726194130077,3.3379,134.81,134.77,14.7488]
[1726194130378,3.3379,134.81,134.78,3.3385]
[1726194130777,3.3379,134.81,134.77,14.7487]
[1726194131585,3.3381,134.8,134.77,14.7487]
[1726194131874,14.7481,134.8,134.76,14.7489]
[1726194132777,6.6749,134.83,134.65,124.18843748]
[1726194133086,11.41,134.75,134.7,11.41]
[1726194133391,14.7493,134.75,134.71,3.3401]
[1726194135469,11.41,134.72,134.69,1.331]
[1726194136676,14.7502,134.72,134.69,1.331]
[1726194137469,3.3402,134.72,134.69,12.741]
[1726194138780,3.3404,134.71,134.67,3.3412]
[1726194138977,14.7504,134.71,134.66,14.2265]
[1726194139165,11.41,134.69,134.66,6.1579]
[1726194139363,11.41,134.69,134.66,1.4258]
[1726194139879,14.7508,134.69,134.66,1.4258]
[1726194140377,14.7509,134.69,134.66,1.4258]
[1726194140971,14.7509,134.69,134.65,127.53023748]
[1726194141175,11.41,134.67,134.63,3.3422]
[1726194141879,11.41,134.68,134.64,14.752]
[1726194142768,14.7512,134.68,134.64,14.752]
[1726194145783,14.7512,134.68,134.62,3.78286053]
[1726194145784,14.7513,134.67,134.63,3.3422]
[1726194151794,14.7513,134.67,134.64,3.342]
[1726194153795,11.41,134.67,134.62,11.41]
[1726194153987,11.41,134.67,134.63,3.3422]
[1726194154595,11.41,134.66,134.63,3.3422]
[1726194157299,11.41,134.66,134.64,3.342]
[1726194157690,7.72872436,134.77,134.64,11.41]
[1726194157898,11.41,134.7,134.65,11.41]
[1726194158198,11.41,134.68,134.64,11.41]
[1726194158389,11.41,134.68,134.66,3.3415]
[1726194159493,11.41,134.68,134.64,11.41]
[1726194159494,11.41,134.68,134.67,3.3413]
[1726194170890,7.72872436,134.77,134.68,3.3408]
[1726194171098,11.41,134.69,134.68,3.3408]
[1726194171799,3.3402,134.72,134.69,3.3408]
[1726194172004,11.41,134.7,134.69,3.3408]
[1726194172709,3.3399,134.73,134.69,3.3408]
[1726194172891,11.41,134.72,134.66,11.41]
[1726194173097,11.41,134.71,134.66,11.41]
[1726194173295,11.41,134.71,134.69,3.3406]
[1726194173899,11.41,134.7,134.65,1.3071]
[1726194174397,11.41,134.7,134.68,3.3409]
[1726194174804,11.41,134.71,134.67,11.41]
[1726194175001,164.23853643,134.77,134.67,11.41]
[1726194175192,11.41,134.72,134.7,3.3405]
[1726194180605,11.41,134.71,134.68,3.3409]
[1726194181797,11.41,134.69,134.68,3.3409]
[1726194185411,11.41,134.69,134.67,3.3412]
[1726194186604,11.41,134.69,134.68,3.341]
[1726194187297,11.41,134.69,134.67,3.3412]
[1726194190700,11.41,134.69,134.65,12.7171]
[1726194190701,11.41,134.68,134.66,3.3414]
[1726194191108,11.41,134.68,134.64,1.3327]
[1726194191506,11.41,134.68,134.67,3.3413]
[1726194193403,11.41,134.68,134.66,3.3414]
[1726194194405,14.7511,134.68,134.65,3.3417]
[1726194194707,11.41,134.67,134.65,3.3417]
[1726194195406,14.7513,134.67,134.64,3.3419]
[1726194195607,11.41,134.67,134.62,11.41]
[1726194196005,11.41,134.66,134.62,11.41]
[1726194196612,11.41,134.66,134.64,3.3419]
[1726194198206,11.41,134.65,134.61,2.7118]
[1726194199102,11.41,134.64,134.62,3.3424]
[1726194199303,11.41,134.63,134.53,14.1202]
[1726194199509,11.41,134.62,134.57,11.41]
[1726194199722,11.41,134.63,134.59,11.41]
[1726194200208,3.3415,134.66,134.62,3.3424]
[1726194200408,11.41,134.64,134.62,3.3424]
[1726194200611,11.41,134.63,134.57,11.41]
[1726194200814,11.41,134.61,134.57,19.811607]
[1726194201018,11.41,134.61,134.57,11.41]
[1726194203314,11.41,134.61,134.59,3.3431]
[1726194204027,11.41,134.61,134.6,3.343]
[1726194205023,3.3423,134.63,134.6,3.343]
[1726194205221,11.41,134.62,134.6,3.343]
[1726194219527,11.41,134.61,134.6,3.343]
[1726194222233,3.3423,134.63,134.56,12.7856]
[1726194222439,4.0941,134.69,134.57,11.41]
[1726194222938,11.41,134.63,134.62,3.3424]
[1726194235049,11.41,134.63,134.56,1.3756]
[1726194235242,11.41,134.62,134.57,11.41]
[1726194235637,11.41,134.62,134.61,3.3427]
[1726194237050,11.41,134.62,134.6,3.343]
[1726194237355,11.41,134.61,134.6,3.343]
[1726194237854,11.41,134.61,134.59,3.3432]
[1726194238054,11.41,134.6,134.59,3.3432]
[1726194243452,11.41,134.6,134.58,3.3434]
[1726194243651,11.41,134.59,134.55,2.802]
[1726194243851,11.41,134.57,134.55,2.802]
[1726194244056,11.41,134.57,134.56,3.344]
[1726194245959,11.41,134.58,134.57,3.3436]
[1726194246544,11.41,134.59,134.58,3.3435]
[1726194246755,11.41,134.6,134.58,3.3435]
[1726194246945,11.41,134.6,134.55,2.802]
[1726194247146,11.41,134.6,134.55,14.212]
[1726194248160,11.41,134.6,134.55,2.802]
[1726194248657,11.41,134.6,134.58,3.3433]
[1726194249755,3.3424,134.63,134.56,11.41]
[1726194249954,4.0941,134.69,134.58,11.41]
[1726194250155,4.0941,134.69,134.55,10.239]
[1726194250156,4.0941,134.69,134.63,3.3422]
[1726194250358,11.41,134.65,134.6,11.41]
[1726194250559,11.41,134.65,134.6,15.4908]
[1726194250866,3.3411,134.68,134.62,11.41]
[1726194251061,3.77432773,134.7,134.62,11.41]
[1726194251062,11.41,134.67,134.62,11.41]
[1726194252563,11.41,134.67,134.63,11.41]
[1726194254051,11.41,134.67,134.62,11.41]
[1726194254563,11.41,134.68,134.63,11.41]
[1726194254750,11.41,134.68,134.66,3.3413]
[1726194254950,11.41,134.7,134.65,11.41]
[1726194255362,11.41,134.7,134.68,3.3408]
[1726194255865,11.41,134.71,134.69,3.3408]
[1726194256860,11.41,134.71,134.68,3.341]
[1726194257453,3.3402,134.72,134.69,3.3407]
[1726194257662,11.41,134.71,134.69,3.3407]
[1726194262774,11.41,134.71,134.67,2.7238]
[1726194263574,11.41,134.71,134.69,3.3406]
[1726194265968,11.41,134.71,134.7,3.3405]
[1726194266370,11.41,134.74,134.69,11.41]
[1726194266767,11.41,134.75,134.73,3.3398]
[1726194272386,11.41,134.75,134.74,3.3395]
[1726194272991,11.41,134.75,134.73,3.3397]
[1726194273179,11.41,134.75,134.71,11.41]
[1726194273388,11.41,134.75,134.7,11.41]
[1726194273684,11.41,134.75,134.73,3.3396]
[1726194279088,11.41,134.76,134.74,3.3395]
[1726194286897,167.91981207,134.77,134.75,3.3393]
[1726194287695,11.41,134.77,134.75,3.3393]
[1726194290305,14.7488,134.77,134.75,3.3393]
[1726194295319,1.3513,134.82,134.75,11.41]
[1726194295502,11.41,134.81,134.76,11.41]
[1726194295809,14.7481,134.81,134.77,3.3387]
[1726194296507,14.7481,134.81,134.78,3.3385]
[1726194297208,3.3377,134.82,134.78,11.41]
[1726194297399,14.7477,134.82,134.78,11.41]
[1726194297606,11.41,134.82,134.78,11.41]
[1726194297800,11.41,134.82,134.79,3.3381]
[1726194298516,14.7476,134.82,134.79,3.3381]
[1726194298711,14.7476,134.82,134.78,14.7485]
[1726194302408,11.41,134.82,134.78,11.41]
[1726194303605,14.7478,134.81,134.77,3.3388]
[1726194304715,14.7478,134.81,134.78,3.3385]
[1726194305419,3.3382,134.8,134.77,14.7488]
[1726194305716,11.41,134.81,134.77,14.7488]
[1726194305922,14.7479,134.81,134.77,14.7488]
[1726194307815,3.3383,134.8,134.76,11.41]
[1726194308723,3.3383,134.8,134.77,3.3386]
[1726194311027,3.3383,134.8,134.77,14.7486]
[1726194316735,3.3383,134.8,134.77,3.3386]
[1726194316932,11.41,134.78,134.72,11.41]
[1726194317135,1.3674,134.83,134.72,11.41]
[1726194317136,11.41,134.77,134.72,11.41]
[1726194317432,1.3674,134.83,134.73,11.41]
[1726194317433,11.41,134.78,134.73,11.41]
[1726194317738,11.41,134.79,134.75,11.41]
[1726194317925,14.7483,134.8,134.75,11.41]
[1726194318124,14.7483,134.8,134.76,11.41]
[1726194318536,14.7483,134.8,134.77,3.3387]
[1726194318933,11.41,134.8,134.76,11.41]
[1726194319133,11.41,134.8,134.75,11.41]
[1726194319735,3.3384,134.79,134.76,3.339]
[1726194319927,11.41,134.8,134.75,11.41]
[1726194320133,3.3386,134.78,134.75,14.7492]
[1726194322238,3.3386,134.78,134.75,3.3392]
[1726194322632,3.3388,134.77,134.74,3.3394]
[1726194323532,14.7487,134.78,134.75,3.3393]
[1726194325935,3.3387,134.78,134.75,3.3393]
[1726194326343,14.7485,134.79,134.76,3.339]
[1726194333349,11.41,134.79,134.75,11.41]
[1726194333555,11.41,134.81,134.76,11.41]
[1726194334145,11.41,134.8,134.75,11.41]
[1726194335149,3.3384,134.79,134.76,3.3389]
[1726194336364,3.3384,134.79,134.76,3.339]
[1726194336756,14.7482,134.8,134.77,3.3387]
[1726194342152,11.41,134.78,134.74,11.41]
[1726194342563,14.7486,134.78,134.75,3.3392]
[1726194348875,3.3389,134.77,134.73,12.7262]
[1726194349469,3.3389,134.77,134.74,3.3395]
[1726194349777,3.3389,134.77,134.73,12.7262]
[1726194349977,3.75222272,134.8,134.73,12.7262]
[1726194349978,3.75222272,134.8,134.74,11.41]
[1726194350275,11.41,134.79,134.74,11.41]
[1726194351482,3.3386,134.78,134.75,3.3392]
[1726194354765,3.339,134.77,134.74,3.3394]
[1726194360277,3.339,134.77,134.75,3.3393]
[1726194360577,11.41,134.78,134.75,3.3393]
[1726194360771,14.7484,134.79,134.76,3.3389]
[1726194361486,11.41,134.79,134.75,3.3392]
[1726194361780,11.41,134.78,134.73,12.7262]
[1726194362299,3.68309702,134.81,134.74,11.41]
[1726194362491,1.3674,134.83,134.74,11.41]
[1726194362787,3.3385,134.79,134.76,3.3389]
[1726194364071,3.3386,134.78,134.76,3.3389]
[1726194364391,3.3386,134.78,134.75,3.3392]
[1726194364682,3.3386,134.78,134.76,3.339]
[1726194364884,14.7484,134.79,134.76,3.339]
[1726194373991,3.3384,134.79,134.76,3.339]
[1726194378997,3.3388,134.77,134.73,1.3162]
[1726194379296,14.7488,134.77,134.74,5.23644782]
[1726194379501,14.7488,134.77,134.74,3.3394]
[1726194380183,11.41,134.76,134.74,3.3394]
[1726194382702,3.65239014,134.81,134.73,12.7262]
[1726194382900,11.41,134.79,134.74,22.84777097]
[1726194383102,11.41,134.79,134.75,5.23667476]
[1726194383292,11.41,134.79,134.74,11.41]
[1726194383494,14.7484,134.79,134.76,3.3389]
[1726194388291,11.41,134.79,134.77,3.3387]
[1726194389690,14.7483,134.79,134.77,3.3387]
[1726194390795,11.41,134.79,134.77,3.3387]
[1726194391107,11.41,134.79,134.76,3.3389]
[1726194391410,14.7485,134.79,134.76,3.3389]
[1726194391801,3.3386,134.78,134.75,3.3392]
[1726194392002,14.7486,134.78,134.75,3.3392]
[1726194393404,11.41,134.76,134.74,3.3395]
[1726194393598,11.41,134.76,134.73,1.3162]
[1726194393800,11.41,134.76,134.74,5.23863254]
[1726194393998,11.41,134.76,134.73,1.3162]
[1726194394193,11.41,134.76,134.74,5.23865337]
[1726194394400,11.41,134.76,134.73,1.3162]
[1726194394600,3.3388,134.77,134.74,5.23865337]
[1726194394796,14.7488,134.77,134.75,3.3393]
[1726194394997,11.41,134.77,134.75,3.3393]
[1726194395510,11.41,134.77,134.76,3.3391]
[1726194396214,3.3388,134.78,134.76,3.3391]
[1726194397110,3.3388,134.78,134.75,3.3392]
[1726194397512,3.3383,134.79,134.74,11.41]
[1726194397814,14.7483,134.79,134.76,3.3389]
[1726194399410,11.41,134.78,134.76,3.3389]
[1726194399609,14.7486,134.78,134.75,3.3392]
[1726194400114,14.7486,134.78,134.76,3.339]
[1726194402105,14.7486,134.78,134.74,11.41]
[1726194402106,14.7486,134.78,134.75,3.3392]
[1726194404914,14.7489,134.77,134.74,3.3395]
[1726194405121,11.41,134.77,134.73,1.3162]
[1726194407019,3.3391,134.76,134.73,4.6558]
[1726194408132,11.41,134.75,134.72,2.607]
[1726194408333,11.41,134.75,134.73,6.20304586]
[1726194408535,11.41,134.75,134.72,2.607]
[1726194408726,11.41,134.75,134.73,6.20304586]
[1726194408926,11.41,134.75,134.72,2.607]
[1726194409126,11.41,134.75,134.73,9.54220398]
[1726194409437,11.41,134.75,134.73,3.3397]
[1726194410231,14.7492,134.76,134.73,3.3397]
[1726194412238,14.7492,134.76,134.74,5.23705115]
[1726194412534,14.7492,134.76,134.73,3.3397]
[1726194412733,14.7492,134.76,134.74,5.23662034]
[1726194412929,14.7492,134.76,134.73,3.3397]
[1726194413136,14.7492,134.76,134.74,3.3395]
[1726194414032,14.7492,134.76,134.74,8.57612034]
[1726194417144,14.7492,134.76,134.74,5.23662034]
[1726194420748,14.7492,134.76,134.73,3.3398]
[1726194423839,14.7494,134.75,134.72,2.607]
[1726194424040,14.7494,134.75,134.72,5.9469]
[1726194425047,11.41,134.73,134.69,9.92439633]
[1726194425246,11.41,134.73,134.7,6.20277246]
[1726194425455,11.41,134.73,134.68,12.7859]
[1726194425747,14.7499,134.73,134.7,3.3403]
[1726194426064,14.7499,134.73,134.68,12.7859]
[1726194426355,14.7499,134.73,134.68,1.3759]
[1726194426547,14.7499,134.73,134.68,12.7859]
[1726194426743,11.41,134.73,134.71,3.3403]
[1726194427251,11.41,134.74,134.69,11.41]
[1726194427957,11.41,134.74,134.7,5.24032242]
[1726194428144,11.41,134.74,134.72,3.34]
[1726194432855,14.7496,134.74,134.71,3.3402]
[1726194433160,11.41,134.73,134.71,3.3402]
[1726194433360,1.3131,134.79,134.72,3.3398]
[1726194433569,11.41,134.74,134.72,3.3398]
[1726194435955,11.41,134.73,134.72,3.3398]
[1726194437560,11.41,134.73,134.71,3.3402]
[1726194444269,3.3396,134.74,134.71,3.3402]
[1726194444471,11.41,134.73,134.71,3.3402]
[1726194450579,11.41,134.72,134.68,1.3759]
[1726194450765,11.41,134.7,134.68,1.3759]
[1726194451870,11.41,134.7,134.69,3.3407]
[1726194453782,11.41,134.7,134.68,3.3409]
[1726194458266,11.41,134.7,134.69,3.3408]
[1726194460966,11.41,134.71,134.69,3.3408]
[1726194466580,11.41,134.7,134.69,3.3408]
[1726194466977,11.41,134.7,134.68,3.3409]
[1726194470290,11.41,134.69,134.65,125.6285623]
[1726194471388,3.3404,134.71,134.68,3.3409]
[1726194471579,11.41,134.7,134.68,3.3409]
[1726194478683,11.41,134.69,134.67,3.3411]
[1726194488286,3.3402,134.72,134.68,3.3408]
[1726194488493,11.41,134.7,134.68,3.3408]
[1726194488796,11.41,134.72,134.66,15.20326199]
[1726194488995,11.41,134.72,134.67,16.6506401]
[1726194489189,11.41,134.72,134.67,11.41]
[1726194489497,11.41,134.72,134.7,3.3405]
[1726194489891,1.3131,134.79,134.69,11.41]
[1726194490100,11.41,134.73,134.69,11.41]
[1726194490800,11.41,134.73,134.69,14.0748]
[1726194492787,11.41,134.73,134.71,3.3401]
[1726194496507,11.41,134.72,134.7,3.3405]
[1726194496696,11.41,134.72,134.69,2.6648]
[1726194497805,11.41,134.72,134.71,3.3403]
[1726194498214,11.41,134.72,134.69,2.6648]
[1726194498506,11.41,134.7,134.69,3.3406]
[1726194500102,11.41,134.7,134.68,3.341]
[1726194501503,11.41,134.7,134.69,3.3408]
[1726194502911,11.41,134.7,134.68,3.3409]
[1726194503314,11.41,134.69,134.68,3.3409]
[1726194506004,11.41,134.7,134.69,3.3407]
[1726194515903,11.41,134.7,134.66,6.47346199]
[1726194516104,11.41,134.7,134.67,3.3411]
[1726194516105,11.41,134.68,134.67,3.3411]
[1726194518915,11.41,134.68,134.64,8.37987774]
[1726194519121,11.41,134.67,134.64,8.37987774]
[1726194519421,11.41,134.67,134.63,11.41]
[1726194519624,11.41,134.67,134.66,3.3414]
[1726194520123,11.41,134.67,134.66,8.57905299]
[1726194521020,11.41,134.67,134.66,3.3414]
[1726194533335,3.3406,134.7,134.67,3.3411]
[1726194533527,11.41,134.68,134.67,3.3411]
[1726194554354,3.3407,134.7,134.67,3.3411]
[1726194554540,11.41,134.68,134.67,3.3411]
[1726194556956,3.3407,134.7,134.68,3.341]
[1726194557159,11.41,134.69,134.68,3.341]
[1726194557338,11.41,134.69,134.67,3.3412]
[1726194558650,3.3407,134.7,134.68,3.341]
[1726194558840,156.52054829,134.73,134.65,21.57487123]
[1726194559037,156.52054829,134.73,134.66,6.19851148]
[1726194559038,11.41,134.71,134.66,6.19851148]
[1726194559242,11.41,134.71,134.69,3.3407]
[1726194562450,11.41,134.71,134.7,3.3405]
[1726194572344,159.86044829,134.73,134.67,3.64879568]
[1726194572560,11.41,134.71,134.66,11.41]
[1726194572751,11.41,134.71,134.67,6.19929977]
[1726194572952,11.41,134.71,134.68,6.19929977]
[1726194573152,11.41,134.71,134.67,13.70724266]
[1726194573354,11.41,134.71,134.67,3.78907519]
[1726194573754,11.41,134.71,134.7,3.3404]
[1726194575367,11.41,134.71,134.69,3.3407]
[1726194575569,11.41,134.7,134.69,3.3407]
[1726194576068,11.41,134.7,134.67,3.78907519]
[1726194577470,159.86034829,134.73,134.67,15.19907519]
[1726194577658,159.86034829,134.73,134.68,17.60895865]
[1726194577659,11.41,134.72,134.68,17.60895865]
[1726194577858,11.41,134.72,134.68,11.41]
[1726194578260,156.52054829,134.73,134.68,11.41]
[1726194578461,167.93054829,134.73,134.69,6.1975111]
[1726194578767,167.93054829,134.73,134.72,3.34]
[1726194579069,11.41,134.74,134.69,14.1338]
[1726194579258,11.41,134.74,134.7,1.2984]
[1726194579455,11.41,134.74,134.73,3.3398]
[1726194583965,11.41,134.74,134.72,3.3399]
[1726194584354,11.41,134.73,134.72,3.3399]
[1726194586878,11.41,134.73,134.71,3.3402]
[1726194589067,11.41,134.72,134.71,3.3402]
[1726194590765,11.41,134.72,134.7,3.3404]
[1726194590965,11.41,134.71,134.7,3.3404]
[1726194594262,11.41,134.72,134.7,3.3404]
[1726194595665,11.41,134.72,134.67,15.10718571]
[1726194595866,11.41,134.72,134.68,14.119]
[1726194596064,11.41,134.72,134.68,19.35230717]
[1726194596269,11.41,134.73,134.68,14.119]
[1726194597368,11.41,134.73,134.71,3.3401]
[1726194603691,3.3396,134.74,134.72,3.34]
[1726194603992,11.41,134.73,134.72,3.34]
[1726194605890,3.3394,134.75,134.72,3.34]
[1726194606092,11.41,134.73,134.72,3.34]
[1726194607389,11.41,134.73,134.68,2.709]
[1726194607594,11.41,134.72,134.68,2.709]
[1726194608282,11.41,134.72,134.69,3.3407]
[1726194608882,14.7501,134.72,134.69,3.3407]
[1726194610692,11.41,134.7,134.69,3.3407]
[1726194614500,11.41,134.72,134.7,3.3405]
[1726194618701,11.41,134.72,134.71,3.3403]
[1726194624199,11.41,134.73,134.71,3.3403]
[1726194635811,11.41,134.72,134.69,3.3406]
[1726194636019,11.41,134.72,134.68,2.709]
[1726194636219,11.41,134.72,134.69,5.23994552]
[1726194636409,11.41,134.72,134.7,3.3403]
[1726194638520,14.7501,134.72,134.7,3.3403]
[1726194638728,11.41,134.71,134.7,3.3403]
[1726194639028,11.41,134.71,134.65,11.41]
[1726194639229,11.41,134.7,134.66,29.76038079]
[1726194639531,11.41,134.7,134.68,3.3408]
[1726194640623,11.41,134.69,134.64,4.0944]
[1726194640832,11.41,134.68,134.65,29.76079153]
[1726194641031,11.41,134.68,134.66,13.62502786]
[1726194641225,11.41,134.68,134.64,4.0944]
[1726194641427,11.41,134.68,134.67,5.23987633]
[1726194641729,11.41,134.68,134.64,4.0944]
[1726194641730,11.41,134.68,134.66,3.3414]
[1726194641930,11.41,134.66,134.64,4.0944]
[1726194642127,11.41,134.66,134.64,2.7642]
[1726194642916,11.41,134.66,134.65,3.3418]
[1726194643130,11.41,134.66,134.6,131.68548945]
[1726194643329,11.41,134.65,134.61,19.84353792]
[1726194643535,11.41,134.65,134.63,3.3421]
[1726194643733,11.41,134.65,134.6,146.80696364]
[1726194644034,11.41,134.65,134.61,19.84445474]
[1726194644229,11.41,134.65,134.62,5.24377968]
[1726194644428,11.41,134.65,134.6,146.80696364]
[1726194644630,11.41,134.66,134.61,31.25445001]
[1726194644833,11.41,134.66,134.64,3.342]
[1726194645531,11.41,134.66,134.64,6.99589503]
[1726194645733,11.41,134.66,134.64,3.342]
[1726194646238,11.41,134.66,134.64,6.99812346]
[1726194646426,11.41,134.66,134.64,3.342]
[1726194647135,11.41,134.66,134.64,7.06265315]
[1726194647335,11.41,134.66,134.64,3.342]
[1726194647938,11.41,134.67,134.65,3.3418]
[1726194652036,11.41,134.67,134.66,3.3415]
[1726194655842,3.3409,134.69,134.66,3.3415]
[1726194656139,11.41,134.7,134.68,3.341]
[1726194656734,14.7506,134.7,134.67,3.3412]
[1726194657044,11.41,134.68,134.64,5.07282089]
[1726194657246,11.41,134.67,134.64,5.07282089]
[1726194657944,11.41,134.67,134.66,3.3414]
[1726194658542,11.41,134.67,134.65,3.3416]
[1726194658932,11.41,134.67,134.64,5.07282089]
[1726194659339,11.41,134.67,134.65,3.3416]
[1726194660146,14.7514,134.67,134.64,5.07282089]
[1726194660349,11.41,134.67,134.64,5.07282089]
[1726194660847,11.41,134.67,134.65,3.3416]
[1726194664441,11.41,134.66,134.65,3.3416]